fUSD/lending_fUSD_20250511
["ID","MTS","AMOUNT","RATE_DAILY","PERIOD"]
[360685116,1746927042911,-400.0,0.00019995,2]
[360685119,1746927042921,-400.0,0.00019995,2]
[360685121,1746927042931,-108.14498995,0.00019995,2]
[360685129,1746927043001,700.0,0.00030136,120]
[360685136,1746927043262,-291.85501005,0.00019995,2]
[360685137,1746927043272,-400.0,0.00019995,2]
[360685139,1746927043282,-400.0,0.00019995,2]
[360685141,1746927043291,-421.64,0.00019995,2]
[360685143,1746927043301,-400.0,0.00019995,2]
[360685145,1746927043310,-400.0,0.00019995,2]
[360685146,1746927043319,-426.09,0.00019995,2]
[360685147,1746927043329,-400.0,0.00019995,2]
[360685148,1746927043339,-400.0,0.00019995,2]
[360685149,1746927043348,-400.0,0.00019995,2]
[360685150,1746927043358,-445.66,0.00019995,2]
[360685152,1746927043368,-506.74,0.00019995,2]
[360685153,1746927043378,-358.48664002,0.00019995,2]
[360685154,1746927043388,-607.86,0.00019995,2]
[360685155,1746927043398,-400.0,0.00019995,2]
[360685156,1746927043408,-1029.49,0.00019995,2]
[360685157,1746927043417,-1492.61,0.00019995,2]
[360685158,1746927043427,-400.0,0.00019995,2]
[360685159,1746927043437,-400.0,0.00019995,2]
[360685160,1746927043446,-400.0,0.00019995,2]
[360685161,1746927043459,-1852.98,0.00019995,2]
[360685162,1746927043469,-644.98,0.00019995,2]
[360685163,1746927043479,-400.0,0.00019995,2]
[360685164,1746927043489,-416.41724103,0.00019995,2]
[360685165,1746927043499,-439.06,0.00019995,2]
[360685166,1746927043509,-400.0,0.00019995,2]
[360685167,1746927043519,-840.35,0.00019995,2]
[360685168,1746927043528,-427.76,0.00019995,2]
[360685169,1746927043538,-400.0,0.00019995,2]
[360685170,1746927043548,-428.76,0.00019996,2]
[360685171,1746927043558,-400.0,0.00019996,2]
[360685172,1746927043568,-158.41814215,0.00019996,2]
[360685173,1746927043578,-400.0,0.00019996,2]
[360685174,1746927043588,-400.0,0.00019996,2]
[360685175,1746927043598,-400.0,0.00019996,2]
[360685176,1746927043607,-400.0,0.00019996,2]
[360685177,1746927043617,-400.0,0.00019996,2]
[360685178,1746927043626,-400.0,0.00019996,2]
[360685179,1746927043636,-400.0,0.00019996,2]
[360685180,1746927043646,-400.0,0.00019996,2]
[360685181,1746927043655,-400.0,0.00019996,2]
[360685182,1746927043665,-400.0,0.00019996,2]
[360685183,1746927043675,-400.0,0.00019996,2]
[360685184,1746927043685,-400.0,0.00019996,2]
[360685185,1746927043695,-400.0,0.00019996,2]
[360685186,1746927043709,-402.02,0.00019996,2]
[360685187,1746927043719,-402.02,0.00019996,2]
[360685188,1746927043729,-243.8,0.00019996,2]
[360685189,1746927043738,-400.0,0.00019996,2]
[360685190,1746927043748,-400.0,0.00019996,2]
[360685191,1746927043758,-400.0,0.00019996,2]
[360685192,1746927043767,-400.0,0.00019996,2]
[360685193,1746927043777,-400.0,0.00019996,2]
[360685194,1746927043787,-400.0,0.00019996,2]
[360685195,1746927043796,-400.0,0.00019996,2]
[360685196,1746927043806,-417.41,0.00019996,2]
[360685197,1746927043816,-400.0,0.00019996,2]
[360685198,1746927043825,-400.0,0.00019996,2]
[360685199,1746927043835,-400.0,0.00019996,2]
[360685200,1746927043844,-400.0,0.00019996,2]
[360685201,1746927043854,-425.2,0.00019996,2]
[360685202,1746927043863,-400.0,0.00019996,2]
[360685203,1746927043872,-321.2075855,0.00019996,2]
[360685204,1746927043882,-400.0,0.00019996,2]
[360685205,1746927043891,-283.89071847,0.00019996,2]
[360685206,1746927043900,-502.71,0.00019996,2]
[360685207,1746927043910,-400.0,0.00019996,2]
[360685208,1746927043919,-400.0,0.00019996,2]
[360685209,1746927043928,-400.0,0.00019996,2]
[360685210,1746927043938,-491.84,0.00019996,2]
[360685211,1746927043948,-400.0,0.00019996,2]
[360685212,1746927043959,-491.84,0.00019996,2]
[360685213,1746927043968,-400.0,0.00019996,2]
[360685214,1746927043978,-400.0,0.00019996,2]
[360685215,1746927043987,-400.0,0.00019996,2]
[360685216,1746927043997,-400.0,0.00019996,2]
[360685217,1746927044007,-400.0,0.00019996,2]
[360685218,1746927044016,-400.0,0.00019996,2]
[360685219,1746927044025,-540.2,0.00019996,2]
[360685220,1746927044035,-540.2,0.00019996,2]
[360685221,1746927044044,-400.0,0.00019996,2]
[360685222,1746927044053,-400.0,0.00019996,2]
[360685223,1746927044063,-484.78,0.00019996,2]
[360685224,1746927044072,-484.78,0.00019996,2]
[360685225,1746927044082,-400.0,0.00019996,2]
[360685226,1746927044091,-400.0,0.00019996,2]
[360685227,1746927044101,-400.0,0.00019996,2]
[360685228,1746927044110,-400.0,0.00019996,2]
[360685229,1746927044120,-400.0,0.00019996,2]
[360685230,1746927044129,-400.0,0.00019996,2]
[360685231,1746927044139,-400.0,0.00019996,2]
[360685232,1746927044149,-400.0,0.00019996,2]
[360685233,1746927044158,-400.0,0.00019996,2]
[360685234,1746927044168,-718.86,0.00019996,2]
[360685235,1746927044177,-718.86,0.00019996,2]
[360685236,1746927044187,-400.0,0.00019996,2]
[360685237,1746927044197,-400.0,0.00019996,2]
[360685238,1746927044207,-400.0,0.00019996,2]
[360685239,1746927044217,-521.92,0.00019996,2]
[360685240,1746927044227,-521.92,0.00019996,2]
[360685241,1746927044237,-400.0,0.00019996,2]
[360685242,1746927044246,-400.0,0.00019996,2]
[360685243,1746927044256,-400.0,0.00019996,2]
[360685244,1746927044266,-400.0,0.00019996,2]
[360685245,1746927044275,-400.0,0.00019996,2]
[360685246,1746927044285,-400.0,0.00019996,2]
[360685247,1746927044295,-400.0,0.00019996,2]
[360685248,1746927044304,-400.0,0.00019996,2]
[360685249,1746927044313,-420.26,0.00019996,2]
[360685250,1746927044323,-443.88,0.00019996,2]
[360685251,1746927044333,-251.78094081,0.00019996,2]
[360685252,1746927044343,-288.33482692,0.00019996,2]
[360685253,1746927044353,-137404.9513617,0.00019996,2]
[360685254,1746927044363,-400.0,0.00019996,2]
[360685255,1746927044373,-400.0,0.00019996,2]
[360685256,1746927044383,-400.0,0.00019996,2]
[360685257,1746927044392,-400.0,0.00019996,2]
[360685258,1746927044402,-400.0,0.00019996,2]
[360685259,1746927044413,-1348.57,0.00019996,2]
[360685260,1746927044422,-1348.57,0.00019996,2]
[360685261,1746927044433,-424.03,0.00019996,2]
[360685262,1746927044443,-424.03,0.00019996,2]
[360685263,1746927044453,-181.02,0.00019996,2]
[360685264,1746927044464,-620.55,0.00019996,2]
[360685265,1746927044474,-620.55,0.00019996,2]
[360685266,1746927044484,-1141.79,0.00019996,2]
[360685267,1746927044495,-400.0,0.00019996,2]
[360685268,1746927044699,-1141.79,0.00019996,2]
[360685269,1746927044709,-400.0,0.00019996,2]
[360685270,1746927044719,-400.0,0.00019996,2]
[360685271,1746927044728,-400.0,0.00019996,2]
[360685272,1746927044738,-400.0,0.00019996,2]
[360685273,1746927044747,-400.0,0.00019996,2]
[360685274,1746927044757,-400.0,0.00019996,2]
[360685275,1746927044766,-400.0,0.00019996,2]
[360685276,1746927044775,-400.0,0.00019996,2]
[360685277,1746927044786,-400.0,0.00019996,2]
[360685278,1746927044797,-319.9,0.00019996,2]
[360685279,1746927044808,-946.8,0.00019996,2]
[360685280,1746927044819,-946.8,0.00019996,2]
[360685281,1746927044828,-404.77,0.00019996,2]
[360685282,1746927044838,-400.0,0.00019996,2]
[360685283,1746927044848,-484.43,0.00019996,2]
[360685284,1746927044859,-400.0,0.00019996,2]
[360685285,1746927044868,-400.0,0.00019996,2]
[360685286,1746927044879,-400.0,0.00019996,2]
[360685287,1746927044889,-448.89,0.00019996,2]
[360685288,1746927044900,-474.38,0.00019996,2]
[360685289,1746927044910,-400.0,0.00019996,2]
[360685290,1746927044920,-400.0,0.00019996,2]
[360685291,1746927044932,-400.0,0.00019996,2]
[360685292,1746927044943,-788.38,0.00019996,2]
[360685293,1746927044954,-156.51840632,0.00019996,2]
[360685294,1746927044963,-400.0,0.00019996,2]
[360685295,1746927044973,-400.0,0.00019996,2]
[360685296,1746927044982,-400.0,0.00019996,2]
[360685297,1746927044991,-400.0,0.00019996,2]
[360685298,1746927045001,-8651.6962403,0.00019996,2]
[360685299,1746927045010,-301.71827453,0.00019996,2]
[360685300,1746927045019,-400.0,0.00019996,2]
[360685301,1746927045028,-400.0,0.00019996,2]
[360685302,1746927045038,-400.0,0.00019996,2]
[360685303,1746927045048,-400.0,0.00019996,2]
[360685304,1746927045058,-20626.04,0.00019996,2]
[360685305,1746927045068,-432.4,0.00019996,2]
[360685306,1746927045077,-432.4,0.00019996,2]
[360685307,1746927045087,-400.0,0.00019996,2]
[360685308,1746927045096,-450.0,0.00019996,2]
[360685309,1746927045106,-400.0,0.00019996,2]
[360685310,1746927045115,-400.0,0.00019996,2]
[360685311,1746927045125,-425.22,0.00019996,2]
[360685312,1746927045135,-3053.9894386,0.00019996,2]
[360685313,1746927045144,-400.0,0.00019996,2]
[360685314,1746927045154,-400.0,0.00019996,2]
[360685315,1746927045163,-400.0,0.00019996,2]
[360685316,1746927045173,-400.0,0.00019996,2]
[360685317,1746927045182,-400.0,0.00019996,2]
[360685318,1746927045191,-400.0,0.00019996,2]
[360685319,1746927045200,-400.0,0.00019996,2]
[360685320,1746927045214,-400.0,0.00019996,2]
[360685321,1746927045223,-400.0,0.00019996,2]
[360685322,1746927045232,-400.0,0.00019996,2]
[360685323,1746927045242,-400.0,0.00019996,2]
[360685324,1746927045251,-421.64,0.00019996,2]
[360685325,1746927045260,-400.0,0.00019996,2]
[360685326,1746927045270,-400.0,0.00019996,2]
[360685327,1746927045279,-420.1,0.00019996,2]
[360685328,1746927045287,-420.1,0.00019996,2]
[360685329,1746927045297,-426.09,0.00019996,2]
[360685330,1746927045307,-400.0,0.00019996,2]
[360685331,1746927045316,-400.0,0.00019996,2]
[360685332,1746927045326,-445.66,0.00019996,2]
[360685333,1746927045337,-400.0,0.00019996,2]
[360685334,1746927045346,-506.74,0.00019996,2]
[360685335,1746927045355,-1029.49,0.00019996,2]
[360685336,1746927045365,-1492.61,0.00019996,2]
[360685337,1746927045375,-400.0,0.00019996,2]
[360685338,1746927045384,-400.0,0.00019996,2]
[360685339,1746927045393,-400.0,0.00019996,2]
[360685340,1746927045403,-400.0,0.00019996,2]
[360685341,1746927045412,-400.0,0.00019996,2]
[360685342,1746927045422,-373.16413067,0.00019996,2]
[360685343,1746927045432,-1852.98,0.00019996,2]
[360685344,1746927045441,-400.0,0.00019996,2]
[360685345,1746927045452,-400.0,0.00019996,2]
[360685346,1746927045464,-439.06,0.00019996,2]
[360685347,1746927045474,-400.0,0.00019996,2]
[360685348,1746927045483,-400.0,0.00019996,2]
[360685349,1746927045493,-840.35,0.00019996,2]
[360685350,1746927045502,-500.0,0.00019997,2]
[360685351,1746927045512,-151.0,0.00019997,2]
[360685352,1746927045521,-400.0,0.00019997,2]
[360685353,1746927045531,-400.0,0.00019997,2]
[360685354,1746927045541,-400.0,0.00019997,2]
[360685355,1746927045551,-400.0,0.00019997,2]
[360685356,1746927045560,-400.0,0.00019997,2]
[360685357,1746927045570,-400.0,0.00019997,2]
[360685358,1746927045579,-400.0,0.00019997,2]
[360685359,1746927045589,-400.0,0.00019997,2]
[360685360,1746927045598,-400.0,0.00019997,2]
[360685361,1746927045608,-400.0,0.00019997,2]
[360685362,1746927045618,-400.0,0.00019997,2]
[360685363,1746927045627,-400.0,0.00019997,2]
[360685364,1746927045637,-420.26,0.00019997,2]
[360685365,1746927045646,-443.88,0.00019997,2]
[360685367,1746927045656,-400.0,0.00019997,2]
[360685369,1746927045666,-400.0,0.00019997,2]
[360685370,1746927045675,-400.0,0.00019997,2]
[360685371,1746927045685,-400.0,0.00019997,2]
[360685372,1746927045696,-400.0,0.00019997,2]
[360685373,1746927045710,-457.94,0.00019997,2]
[360685374,1746927045720,-404.77,0.00019997,2]
[360685375,1746927045729,-400.0,0.00019997,2]
[360685376,1746927045739,-400.0,0.00019997,2]
[360685377,1746927045748,-788.38,0.00019997,2]
[360685379,1746927045759,-297.64,0.00019997,2]
[360685381,1746927045768,-400.0,0.00019997,2]
[360685382,1746927045777,-400.0,0.00019997,2]
[360685383,1746927045788,-400.0,0.00019997,2]
[360685384,1746927045797,-400.0,0.00019997,2]
[360685385,1746927045806,-400.0,0.00019997,2]
[360685386,1746927045816,-400.0,0.00019997,2]
[360685387,1746927045825,-400.0,0.00019997,2]
[360685388,1746927045835,-400.0,0.00019997,2]
[360685389,1746927045845,-20626.04,0.00019997,2]
[360685390,1746927045855,-400.0,0.00019997,2]
[360685391,1746927045864,-400.0,0.00019997,2]
[360685392,1746927045874,-400.0,0.00019997,2]
[360685393,1746927045884,-400.0,0.00019997,2]
[360685394,1746927045893,-494.84,0.00019997,2]
[360685395,1746927045902,-425.22,0.00019997,2]
[360685396,1746927045912,-400.0,0.00019997,2]
[360685397,1746927045922,-736.67,0.00019997,2]
[360685398,1746927045933,-736.67,0.00019997,2]
[360685399,1746927045944,-400.0,0.00019997,2]
[360685400,1746927045954,-400.0,0.00019997,2]
[360685401,1746927045964,-400.0,0.00019997,2]
[360685402,1746927045973,-400.0,0.00019997,2]
[360685403,1746927045983,-229.55,0.00019997,2]
[360685404,1746927045993,-400.0,0.00019997,2]
[360685405,1746927046004,-255.6,0.00019997,2]
[360685406,1746927046016,-400.0,0.00019997,2]
[360685407,1746927046026,-421.64,0.00019997,2]
[360685408,1746927046035,-267.2806602,0.00019997,2]
[360685409,1746927046045,-400.0,0.00019997,2]
[360685410,1746927046054,-400.0,0.00019997,2]
[360685411,1746927046063,-426.09,0.00019997,2]
[360685412,1746927046072,-400.0,0.00019997,2]
[360685413,1746927046082,-400.0,0.00019997,2]
[360685414,1746927046091,-400.0,0.00019997,2]
[360685415,1746927046100,-445.66,0.00019997,2]
[360685416,1746927046110,-506.74,0.00019997,2]
[360685417,1746927046119,-607.86,0.00019997,2]
[360685418,1746927046129,-607.86,0.00019997,2]
[360685419,1746927046139,-400.0,0.00019997,2]
[360685420,1746927046148,-400.0,0.00019997,2]
[360685421,1746927046157,-1029.49,0.00019997,2]
[360685422,1746927046167,-1492.61,0.00019997,2]
[360685423,1746927046176,-400.0,0.00019997,2]
[360685424,1746927046186,-400.0,0.00019997,2]
[360685425,1746927046196,-400.0,0.00019997,2]
[360685426,1746927046207,-191.24369242,0.00019997,2]
[360685427,1746927046217,-400.0,0.00019997,2]
[360685428,1746927046226,-1852.98,0.00019997,2]
[360685429,1746927046235,-644.98,0.00019997,2]
[360685430,1746927046245,-644.98,0.00019997,2]
[360685431,1746927046254,-400.0,0.00019997,2]
[360685432,1746927046263,-400.0,0.00019997,2]
[360685433,1746927046273,-439.06,0.00019997,2]
[360685434,1746927046282,-400.0,0.00019997,2]
[360685435,1746927046292,-400.0,0.00019997,2]
[360685436,1746927046301,-840.35,0.00019997,2]
[360685437,1746927046310,-427.76,0.00019997,2]
[360685438,1746927046319,-427.76,0.00019997,2]
[360685439,1746927046329,-197.53714511,0.00019997,2]
[360685440,1746927046338,-300.0,0.00019997,2]
[360685441,1746927046347,-357.91716116,0.00019998,2]
[360685442,1746927046356,-500.0,0.00019998,2]
[360685443,1746927046366,-500.0,0.00019998,2]
[360685444,1746927046375,-500.0,0.00019998,2]
[360685445,1746927046385,-151.0,0.00019998,2]
[360685446,1746927046394,-500.0,0.00019998,2]
[360685447,1746927046403,-151.0,0.00019998,2]
[360685449,1746927046412,-184.610384,0.00019998,2]
[360685450,1746927046421,-184.610384,0.00019998,2]
[360685451,1746927046431,-400.0,0.00019998,2]
[360685452,1746927046439,-400.0,0.00019998,2]
[360685453,1746927046449,-259.00014762,0.00019998,2]
[360685454,1746927046463,-151.0,0.00019998,2]
[360685455,1746927046472,-151.0,0.00019998,2]
[360685456,1746927046481,-400.0,0.00019998,2]
[360685457,1746927046491,-400.0,0.00019998,2]
[360685458,1746927046500,-400.0,0.00019998,2]
[360685459,1746927046511,-400.0,0.00019998,2]
[360685460,1746927046520,-396.74,0.00019998,2]
[360685461,1746927046530,-300.0,0.00019998,2]
[360685462,1746927046539,-400.0,0.00019998,2]
[360685463,1746927046548,-400.0,0.00019998,2]
[360685464,1746927046558,-400.0,0.00019998,2]
[360685465,1746927046567,-400.0,0.00019998,2]
[360685466,1746927046576,-400.0,0.00019998,2]
[360685467,1746927046585,-400.0,0.00019998,2]
[360685468,1746927046595,-400.0,0.00019998,2]
[360685469,1746927046604,-318.31,0.00019998,2]
[360685470,1746927046613,-400.0,0.00019998,2]
[360685471,1746927046623,-400.0,0.00019998,2]
[360685472,1746927046632,-402.02,0.00019998,2]
[360685473,1746927046641,-400.0,0.00019998,2]
[360685474,1746927046650,-400.0,0.00019998,2]
[360685475,1746927046660,-402.02,0.00019998,2]
[360685476,1746927046669,-400.0,0.00019998,2]
[360685477,1746927046678,-400.0,0.00019998,2]
[360685478,1746927046687,-402.02,0.00019998,2]
[360685479,1746927046697,-402.02,0.00019998,2]
[360685480,1746927046711,-402.02,0.00019998,2]
[360685481,1746927046720,-402.02,0.00019998,2]
[360685482,1746927046729,-300.0,0.00019998,2]
[360685483,1746927046739,-400.0,0.00019998,2]
[360685484,1746927046748,-400.0,0.00019998,2]
[360685485,1746927046758,-400.0,0.00019998,2]
[360685486,1746927046767,-379.2,0.00019998,2]
[360685487,1746927046775,-400.0,0.00019998,2]
[360685488,1746927046785,-400.0,0.00019998,2]
[360685489,1746927046794,-400.0,0.00019998,2]
[360685490,1746927046803,-400.0,0.00019998,2]
[360685491,1746927046812,-400.0,0.00019998,2]
[360685492,1746927046821,-400.0,0.00019998,2]
[360685493,1746927046830,-400.0,0.00019998,2]
[360685494,1746927046839,-400.0,0.00019998,2]
[360685495,1746927046848,-400.0,0.00019998,2]
[360685496,1746927046858,-400.0,0.00019998,2]
[360685497,1746927046867,-400.0,0.00019998,2]
[360685498,1746927046877,-400.0,0.00019998,2]
[360685499,1746927046886,-400.0,0.00019998,2]
[360685500,1746927046895,-400.0,0.00019998,2]
[360685501,1746927046904,-400.0,0.00019998,2]
[360685502,1746927046914,-400.0,0.00019998,2]
[360685503,1746927046923,-400.0,0.00019998,2]
[360685504,1746927046932,-400.0,0.00019998,2]
[360685505,1746927046943,-400.0,0.00019998,2]
[360685506,1746927046952,-257.12,0.00019998,2]
[360685507,1746927046962,-491.84,0.00019998,2]
[360685508,1746927046971,-400.0,0.00019998,2]
[360685509,1746927046981,-491.84,0.00019998,2]
[360685510,1746927046990,-400.0,0.00019998,2]
[360685511,1746927047000,-491.84,0.00019998,2]
[360685512,1746927047051,-400.0,0.00019998,2]
[360685513,1746927047060,-491.84,0.00019998,2]
[360685514,1746927047069,-400.0,0.00019998,2]
[360685515,1746927047079,-491.84,0.00019998,2]
[360685516,1746927047088,-400.0,0.00019998,2]
[360685517,1746927047097,-491.84,0.00019998,2]
[360685518,1746927047106,-400.0,0.00019998,2]
[360685519,1746927047115,-400.0,0.00019998,2]
[360685520,1746927047124,-400.0,0.00019998,2]
[360685521,1746927047133,-400.0,0.00019998,2]
[360685522,1746927047143,-400.0,0.00019998,2]
[360685523,1746927047152,-400.0,0.00019998,2]
[360685524,1746927047161,-400.0,0.00019998,2]
[360685525,1746927047170,-405.95,0.00019998,2]
[360685526,1746927047181,-400.0,0.00019998,2]
[360685527,1746927047190,-400.0,0.00019998,2]
[360685528,1746927047199,-400.0,0.00019998,2]
[360685529,1746927047213,-400.0,0.00019998,2]
[360685530,1746927047222,-400.0,0.00019998,2]
[360685531,1746927047231,-400.0,0.00019998,2]
[360685532,1746927047240,-540.2,0.00019998,2]
[360685533,1746927047249,-540.2,0.00019998,2]
[360685534,1746927047259,-540.2,0.00019998,2]
[360685535,1746927047268,-540.2,0.00019998,2]
[360685536,1746927047277,-540.2,0.00019998,2]
[360685537,1746927047286,-540.2,0.00019998,2]
[360685538,1746927047296,-400.0,0.00019998,2]
[360685539,1746927047307,-400.0,0.00019998,2]
[360685540,1746927047316,-400.0,0.00019998,2]
[360685541,1746927047325,-400.0,0.00019998,2]
[360685542,1746927047334,-400.0,0.00019998,2]
[360685543,1746927047343,-400.0,0.00019998,2]
[360685544,1746927047352,-484.78,0.00019998,2]
[360685545,1746927047361,-484.78,0.00019998,2]
[360685546,1746927047370,-341.46961484,0.00019998,2]
[360685547,1746927047408,700.0,0.00030136,120]
[360685548,1746927047446,700.0,0.00030136,120]
[360685549,1746927047479,273.26954578,0.00030136,120]
[360685550,1746927047662,-400.0,0.00019806,2]
[360685551,1746927047671,-400.0,0.00019806,2]
[360685552,1746927047681,-527.7008,0.00019806,2]
[360685553,1746927047691,-400.0,0.00019991,2]
[360685554,1746927047700,-400.0,0.00019991,2]
[360685555,1746927047713,-400.0,0.00019995,2]
[360685556,1746927047722,-400.0,0.00019995,2]
[360685557,1746927047732,-400.0,0.00019997,2]
[360685558,1746927047741,-400.0,0.00019997,2]
[360685559,1746927047751,-400.0,0.00019997,2]
[360685560,1746927047761,-228.52858461,0.00019997,2]
[360685561,1746927047772,-171.47141539,0.00019997,2]
[360685562,1746927047783,-143.31038516,0.00019998,2]
[360685563,1746927047793,-484.78,0.00019998,2]
[360685564,1746927047802,-484.78,0.00019998,2]
[360685565,1746927047811,-484.78,0.00019998,2]
[360685566,1746927047821,-1000.0,0.00019998,2]
[360685567,1746927047829,-1000.0,0.00019998,2]
[360685568,1746927047839,-1000.0,0.00019998,2]
[360685569,1746927047847,-259.02724013,0.00019998,2]
[360685570,1746927047864,-140.97275987,0.00019998,2]
[360685571,1746927047873,-400.0,0.00019998,2]
[360685572,1746927047882,-400.0,0.00019998,2]
[360685573,1746927047891,-194.36967679,0.00019998,2]
[360685574,1746927047902,-205.63032321,0.00019998,2]
[360685575,1746927047912,-465.61,0.00019998,2]
[360685576,1746927047921,-400.0,0.00019998,2]
[360685577,1746927047931,-400.0,0.00019998,2]
[360685578,1746927047940,-291.97895773,0.00019998,2]
[360685579,1746927047949,-301.70675319,0.00019998,2]
[360685580,1746927047960,-400.0,0.00019998,2]
[360685581,1746927047969,-400.0,0.00019998,2]
[360685582,1746927047978,-400.0,0.00019998,2]
[360685583,1746927047988,-259.46538297,0.00019998,2]
[360685584,1746927047998,-718.86,0.00019998,2]
[360685585,1746927048008,-718.86,0.00019998,2]
[360685586,1746927048017,-347.7558655,0.00019998,2]
[360685587,1746927048030,-371.1041345,0.00019998,2]
[360685588,1746927048039,-718.86,0.00019998,2]
[360685589,1746927048048,-718.86,0.00019998,2]
[360685590,1746927048057,-718.86,0.00019998,2]
[360685591,1746927048066,-357.64,0.00019998,2]
[360685592,1746927048075,-400.0,0.00019998,2]
[360685593,1746927048084,-486.9895043,0.00019998,2]
[360685594,1746927048094,-521.92,0.00019998,2]
[360685595,1746927048103,-521.92,0.00019998,2]
[360685596,1746927048112,-521.92,0.00019998,2]
[360685597,1746927048122,-521.92,0.00019998,2]
[360685598,1746927048131,-521.92,0.00019998,2]
[360685599,1746927048140,-521.92,0.00019998,2]
[360685600,1746927048150,-400.0,0.00019998,2]
[360685601,1746927048159,-400.0,0.00019998,2]
[360685602,1746927048168,-478.76,0.00019998,2]
[360685603,1746927048177,-400.0,0.00019998,2]
[360685604,1746927048187,-400.0,0.00019998,2]
[360685605,1746927048196,-400.0,0.00019998,2]
[360685606,1746927048206,-400.0,0.00019998,2]
[360685607,1746927048216,-155.521842,0.00019998,2]
[360685608,1746927048226,-400.0,0.00019998,2]
[360685609,1746927048235,-121.93852853,0.00019998,2]
[360685610,1746927048252,-278.06147147,0.00019998,2]
[360685611,1746927048261,-151.0,0.00019998,2]
[360685612,1746927048270,-400.0,0.00019998,2]
[360685613,1746927048279,-540.54693523,0.00019998,2]
[360685614,1746927048288,-151.0,0.00019998,2]
[360685615,1746927048298,-420.26,0.00019998,2]
[360685616,1746927048306,-420.26,0.00019998,2]
[360685617,1746927048316,-187.17159328,0.00019998,2]
[360685618,1746927109458,200.2,0.00030137,120]
[360685619,1746927115439,1464.0,0.00030137,120]
[360685621,1746927200465,500.0,0.00030137,120]
[360685623,1746927711371,1000.0,0.00030136,120]
[360685624,1746927718173,1000.0,0.0003,120]
[360685625,1746927724649,231.0,0.00013013,120]
[360685626,1746927733534,1000.0,0.00030136,120]
[360685627,1746927800406,500.0,0.00030137,120]
[360685628,1746927912527,281.31,0.00013699,2]
[360685629,1746927935583,1004.05,0.00030137,120]
[360685630,1746927967181,1966.94733324,0.00030137,120]
[360685631,1746928022697,835.3,0.00016832,2]
[360685632,1746928031096,-481.87,0.00018774,2]
[360685633,1746928031120,-265.86,0.00018781,2]
[360685634,1746928031141,-156.32,0.00018781,2]
[360685635,1746928031162,-167.27,0.00018797,2]
[360685636,1746928031183,-27.1240823,0.00018828,2]
[360685641,1746928232103,-337.43188258,0.000187,2]
[360685642,1746928232119,-250.0,0.00018744,2]
[360685643,1746928232130,-352.38868936,0.00018787,2]
[360685644,1746928232210,-847.61131064,0.00018787,2]
[360685645,1746928232221,-300.0,0.00018787,2]
[360685646,1746928232237,-20162.99,0.00018788,2]
[360685647,1746928232249,-250.0,0.00018799,2]